fUST/lending_fUST_20251022
["ID","MTS","AMOUNT","RATE_DAILY","PERIOD"]
[391997879,1761073617051,-500.0,0.00023999,2]
[391997880,1761073617079,-500.0,0.00023999,2]
[391997881,1761073617106,-500.0,0.00023999,2]
[391997882,1761073617134,-500.0,0.00023999,2]
[391997883,1761073617162,-500.0,0.00023999,2]
[391997884,1761073617191,-500.0,0.00023999,2]
[391997885,1761073617221,-500.0,0.00023999,2]
[391997886,1761073617249,-500.0,0.00023999,2]
[391997887,1761073617279,-500.0,0.00023999,2]
[391997888,1761073617370,-500.0,0.00023999,2]
[391997889,1761073617398,-500.0,0.00023999,2]
[391997890,1761073617425,-319.27335591,0.00023999,2]
[391997891,1761073617452,-500.0,0.00023999,2]
[391997892,1761073617480,-500.0,0.00023999,2]
[391997893,1761073617508,-500.0,0.00023999,2]
[391997894,1761073617536,-500.0,0.00023999,2]
[391997895,1761073617575,-500.0,0.00023999,2]
[391997896,1761073617605,-500.0,0.00023999,2]
[391997897,1761073617636,-500.0,0.00023999,2]
[391997898,1761073617713,-500.0,0.00023999,2]
[391997899,1761073617745,-500.0,0.00023999,2]
[391997900,1761073617775,-500.0,0.00023999,2]
[391997901,1761073617806,-500.0,0.00023999,2]
[391997902,1761073618270,5000.0,0.00023759,2]
[391997903,1761073619806,-5761.49328818,0.00024,30]
[391997904,1761073620042,-10000.01,0.00024,30]
[391997905,1761073620177,500.0,0.00023999,2]
[391997906,1761073620207,500.0,0.00023999,2]
[391997907,1761073620238,0.01,0.00023999,2]
[391997908,1761073620263,499.99,0.00023999,2]
[391997909,1761073620292,500.0,0.00023999,2]
[391997910,1761073620321,500.0,0.00023999,2]
[391997911,1761073620365,500.0,0.00023999,2]
[391997912,1761073620394,500.0,0.00023999,2]
[391997913,1761073620426,500.0,0.00023999,2]
[391997914,1761073620456,616.35319105,0.00023999,2]
[391997915,1761073620486,500.0,0.00023999,2]
[391997916,1761073620517,500.0,0.00023999,2]
[391997917,1761073620546,500.0,0.00023999,2]
[391997918,1761073620579,500.0,0.00023999,2]
[391997919,1761073620610,500.0,0.00023999,2]
[391997920,1761073620640,500.0,0.00023999,2]
[391997921,1761073620667,481.00034637,0.00023999,2]
[391997922,1761073620701,500.0,0.00023999,2]
[391997923,1761073620861,500.0,0.00023999,2]
[391997924,1761073620894,500.0,0.00023999,2]
[391997925,1761073620925,500.0,0.00023999,2]
[391997926,1761073621339,500.0,0.00023999,2]
[391997927,1761073621368,402.66646258,0.00023999,2]
[391997928,1761073621393,97.33353742,0.00023999,2]
[391997929,1761073621420,500.0,0.00023999,2]
[391997930,1761073621446,184.33749959,0.00023999,2]
[391997931,1761073621472,500.0,0.00023999,2]
[391997932,1761073621498,500.0,0.00023999,2]
[391997933,1761073621524,500.0,0.00023999,2]
[391997934,1761073621578,500.0,0.00023999,2]
[391997935,1761073621606,500.0,0.00023999,2]
[391997936,1761073621636,500.0,0.00023999,2]
[391997937,1761073621682,273.46020314,0.00023999,2]
[391997938,1761073621713,500.0,0.00023999,2]
[391997939,1761073621753,500.0,0.00023999,2]
[391997940,1761073621779,500.0,0.00023999,2]
[391997941,1761073621817,500.0,0.00023999,2]
[391997942,1761073621844,500.0,0.00023999,2]
[391997943,1761073621870,500.0,0.00023999,2]
[391997944,1761073622050,-1944.86875985,0.00024,30]
[391997945,1761073622079,500.0,0.00023999,2]
[391997946,1761073622117,500.0,0.00023999,2]
[391997947,1761073622151,-318.08090875,0.00024,30]
[391997948,1761073622178,500.0,0.00023999,2]
[391997949,1761073622206,500.0,0.00023999,2]
[391997950,1761073622235,500.0,0.00023999,2]
[391997951,1761073622463,-7500.01,0.00024,30]
[391997952,1761073622481,-10000.01,0.00024,30]
[391997953,1761073622499,-10000.01,0.00024,30]
[391997954,1761073622535,-10000.01,0.00024,30]
[391997955,1761073625681,-5000.0,0.00023758,2]
[391997956,1761073625719,-0.01,0.00023998,2]
[391997957,1761073625791,-299.99,0.00023998,2]
[391997958,1761073625825,-9400.03,0.00024,30]
[391997959,1761073628209,-198.076796,0.000232,2]
[391997960,1761073631728,-101.923204,0.000232,2]
[391997961,1761073631764,-9796.163592,0.00024,30]
[391997962,1761073632078,-10000.01,0.00024,30]
[391997963,1761073632178,-10000.01,0.00024,30]
[391997964,1761073632373,-10000.01,0.00024,30]
[391997965,1761073632735,-10000.01,0.00024,30]
[391997966,1761073632960,-10000.01,0.00024,30]
[391997967,1761073633108,-3209.35216845,0.00024,30]
[391997968,1761073633455,839.41769347,0.00023867,2]
[391997969,1761073633696,500.0,0.00023999,2]
[391997970,1761073633997,500.0,0.00023999,2]
[391997971,1761073634333,500.0,0.00023999,2]
[391997972,1761073636934,300.0,0.000232,2]
[391997973,1761073641785,5000.0,0.00024072,2]
[391997974,1761073644731,157.0,8.3e-07,2]
[391997975,1761073647237,300.0,0.000232,2]
[391997976,1761073648401,150.0,0.00021387,2]
[391997977,1761073648882,242.08,0.00023332,2]
[391997978,1761073649791,3850.93,0.00024072,2]
[391997979,1761073649810,1149.07,0.00024072,2]
[391997980,1761073651990,300.0,0.00024,2]
[391997981,1761073652703,150.0,0.00013593,30]
[391997982,1761073653603,150.0,0.00014829,30]
[391997983,1761073654063,155.63,0.00016065,30]
[391997984,1761073654449,207.5,0.00017301,30]
[391997985,1761073654765,300.0,0.000232,2]
[391997986,1761073654884,259.38,0.00018537,30]
[391997987,1761073655288,311.25,0.00019772,30]
[391997988,1761073655716,363.13,0.00021008,30]
[391997989,1761073656110,415.0,0.00022244,30]
[391997990,1761073656511,466.88,0.0002348,30]
[391997991,1761073657550,307.79135254,0.00024072,2]
[391997992,1761073662304,300.0,0.00024,2]
[391997993,1761073665051,300.0,0.000232,2]
[391997994,1761073665488,4864.37864746,0.00024072,2]
[391997995,1761073665511,135.62135254,0.00024072,2]
[391997996,1761073670197,2326.32966201,0.00021818,2]
[391997997,1761073672568,300.0,0.00024,2]
[391997998,1761073673317,5000.0,0.00024072,2]
[391997999,1761073675915,300.0,0.000232,2]
[391998000,1761073681319,1938.05898545,0.00024072,2]
[391998001,1761073681341,2126.09217838,0.00024072,2]
[391998002,1761073682850,300.0,0.00024,2]
[391998003,1761073685862,300.0,0.000232,2]
[391998004,1761073689639,5000.0,0.00024072,2]
[391998005,1761073693495,300.0,0.00024,2]
[391998006,1761073695910,300.0,0.000232,2]
[391998007,1761073698162,1673.91782162,0.00024072,2]
[391998008,1761073698184,3326.08217838,0.00024072,2]
[391998009,1761073710186,196.0,0.00018,2]
[391998010,1761073710383,196.0,0.00018003,2]
[391998011,1761073710586,196.0,0.00018006,2]
[391998012,1761073710778,196.0,0.00018009,2]
[391998013,1761073710990,196.0,0.00018011,2]
[391998014,1761073711184,196.0,0.00018014,2]
[391998015,1761073711388,196.0,0.00018017,2]
[391998016,1761073711565,196.0,0.0001802,2]
[391998017,1761073711763,196.0,0.00018023,2]
[391998018,1761073711967,196.0,0.00018026,2]
[391998019,1761073712186,196.0,0.00018029,2]
[391998020,1761073712392,196.0,0.00018031,2]
[391998021,1761073712773,196.0,0.00018034,2]
[391998022,1761073712814,196.0,0.00018037,2]
[391998023,1761073713001,196.0,0.0001804,2]
[391998024,1761073713198,196.0,0.00018043,2]
[391998025,1761073713263,3537.92782162,0.00024072,2]
[391998026,1761073713284,1462.07217838,0.00024072,2]
[391998027,1761073713401,196.0,0.00018046,2]
[391998028,1761073713584,196.0,0.00018049,2]
[391998029,1761073713799,196.0,0.00018051,2]
[391998030,1761073714071,196.0,0.00018054,2]
[391998031,1761073714274,196.0,0.00018057,2]
[391998032,1761073714481,196.0,0.0001806,2]
[391998033,1761073714724,196.0,0.00018063,2]
[391998034,1761073714926,196.0,0.00018066,2]
[391998035,1761073715450,196.0,0.00018069,2]
[391998036,1761073715684,196.0,0.00018071,2]
[391998037,1761073715894,196.0,0.00018074,2]
[391998038,1761073716095,196.0,0.00018077,2]
[391998039,1761073716281,196.0,0.0001808,2]
[391998040,1761073716516,196.0,0.00018083,2]
[391998041,1761073716732,196.0,0.00018086,2]
[391998042,1761073717095,196.0,0.00018089,2]
[391998043,1761073717289,196.0,0.00018091,2]
[391998044,1761073717493,196.0,0.00018094,2]
[391998045,1761073717677,196.0,0.00018097,2]
[391998046,1761073718028,340.90145887,0.000181,2]
[391998047,1761073721030,4473.03636275,0.00024072,2]
[391998048,1761073721053,526.96363725,0.00024072,2]
[391998049,1761073725723,150.0,0.0002,2]
[391998050,1761073726151,266.93,0.00021818,2]
[391998051,1761073726562,400.39,0.00023636,2]
[391998052,1761073730104,770.70574043,0.00024072,2]
[391998053,1761073730487,150.0,0.00013759,30]
[391998054,1761073730886,150.0,0.0001501,30]
[391998055,1761073731454,171.6,0.00016261,30]
[391998056,1761073731882,228.79,0.00017512,30]
[391998057,1761073732316,285.99,0.00018763,30]
[391998058,1761073732721,343.19,0.00020014,30]
[391998059,1761073733176,400.39,0.00021265,30]
[391998060,1761073733530,457.59,0.00022515,30]
[391998061,1761073734508,514.79,0.00023766,30]
[391998062,1761073738018,5000.0,0.00024072,2]
[391998063,1761073746630,182.68062232,0.00024072,2]
[391998064,1761073746652,4817.31937768,0.00024072,2]
[391998065,1761073762285,5000.0,0.00024072,2]
[391998066,1761073770024,182.69062232,0.00024072,2]
[391998067,1761073770048,4817.30937768,0.00024072,2]
[391998068,1761073774228,2840.0721428,0.0002399,2]
[391998069,1761073784815,2342.62847952,0.00024072,2]
[391998070,1761073784837,2657.37152048,0.00024072,2]
[391998071,1761073793294,5000.0,0.00024072,2]
[391998072,1761073802534,154.92,0.00020005,2]
[391998073,1761073802936,309.84,0.00021823,2]
[391998074,1761073803332,464.77,0.00023642,2]
[391998075,1761073806652,150.0,0.00013584,30]
[391998076,1761073807041,150.0,0.00014819,30]
[391998077,1761073807486,199.19,0.00016053,30]
[391998078,1761073807889,265.58,0.00017288,30]
[391998079,1761073808349,331.98,0.00018523,30]
[391998080,1761073808494,316.35847952,0.00024072,2]
[391998081,1761073808738,398.37,0.00019758,30]
[391998082,1761073809163,464.77,0.00020993,30]
[391998083,1761073809542,-429.36506362,0.00024072,2]
[391998084,1761073809584,531.16,0.00022228,30]
[391998085,1761073809978,597.56,0.00023463,30]
[391998086,1761073814094,-457.4733056,0.00024072,2]
[391998087,1761073816262,5000.0,0.00024072,2]
[391998088,1761073816948,-168.55515731,0.00024072,2]
[391998128,1761073831714,-3628.24799395,0.00024072,2]
[391998129,1761073831724,-797.77111624,0.00024099,2]
[391998130,1761073831732,-455.01848347,0.00024112,2]
[391998131,1761073831741,-1000.0,0.00024162,2]
[391998132,1761073831750,-437.82131396,0.00024162,2]
[391998133,1761073831759,-696.12,0.00024189,3]
[391998134,1761073831767,-348.06,0.0002419,3]
[391998135,1761073831777,-300.0,0.00024197,2]
[391998136,1761073831786,-300.0,0.00024197,2]
[391998138,1761073831795,-300.0,0.00024197,2]
[391998140,1761073831804,-1200.0,0.00024198,2]
[391998142,1761073831813,-300.0,0.00024198,2]
[391998144,1761073831822,-1200.0,0.00024198,2]
[391998146,1761073831831,-300.0,0.00024198,2]
[391998147,1761073831840,-50000.0,0.00024199,2]
[391998149,1761073831850,-202.6766148,0.00024216,2]
[391998151,1761073831859,-505.42120881,0.00024472,2]
[391998153,1761073831869,-500.0,0.00024472,2]
[391998154,1761073831878,-396.2056909,0.00024472,2]
[391998156,1761073831887,-500.0,0.00024472,2]
[391998157,1761073831895,-500.0,0.00024472,2]
[391998158,1761073831905,-500.0,0.00024472,2]
[391998159,1761073831914,-597.88892737,0.00024472,2]
[391998160,1761073831924,-500.0,0.00024473,2]
[391998161,1761073831934,-10154.4732953,0.0002449,2]
[391998162,1761073831944,-563.12158144,0.00024698,30]
[391998163,1761073831953,-1213.89523312,0.00024773,2]
[391998164,1761073831964,-9766.66393103,0.00024773,2]
[391998165,1761073831973,-398.2,0.000248,2]
[391998166,1761073831984,-281.17350901,0.00024837,2]
[391998167,1761073831992,-174.03,0.00024842,3]
[391998168,1761073832002,-522.09,0.00024842,3]
[391998169,1761073832011,-428.1885058,0.00024851,2]
[391998170,1761073832021,-500.0,0.00024851,2]
[391998171,1761073832031,-376.64465884,0.00024851,2]
[391998172,1761073832042,-151.0,0.00024852,7]
[391998173,1761073832051,-151.0,0.00024852,2]
[391998174,1761073832060,-151.0,0.00024852,7]
[391998175,1761073832071,-151.0,0.00024852,7]
[391998176,1761073832081,-151.0,0.00024852,7]
[391998177,1761073832090,-159.840175,0.00024852,7]
[391998178,1761073832100,-159.840175,0.00024852,7]
[391998179,1761073832109,-159.840175,0.00024852,7]
[391998180,1761073832119,-159.840175,0.00024852,7]
[391998181,1761073832128,-151.0,0.00024852,7]
[391998182,1761073832140,-189914.65677424,0.00024852,2]
[391998183,1761073832210,360.04507294,0.00018,2]
[391998184,1761073838976,2648.10492706,0.00024072,2]
[391998185,1761073838999,2351.89507294,0.00024072,2]
[391998189,1761073839819,-500.0,0.00024472,2]
[391998190,1761073839828,-500.0,0.00024472,2]
[391998191,1761073839837,-500.0,0.00024472,2]
[391998192,1761073839845,-500.0,0.00024472,2]
[391998193,1761073839854,-382.90833323,0.00024472,2]
[391998194,1761073839864,-323.54671181,0.00024472,2]
[391998195,1761073839873,-14865.05013697,0.00024852,2]
[391998214,1761073842700,-638.29224332,0.00024852,2]
[391998216,1761073842711,-1796.98151172,0.00024852,2]
[391998398,1761073845902,-110051.00291183,0.00024852,2]
[391998400,1761073880957,150.0,0.00020045,2]
[391998401,1761073881381,211.65,0.00021867,2]
[391998402,1761073881782,317.48,0.0002369,2]
[391998403,1761073885113,150.0,0.00012813,30]
[391998404,1761073885507,150.0,0.00013978,30]
[391998405,1761073886590,150.0,0.00015143,30]
[391998406,1761073886981,181.42,0.00016307,30]
[391998407,1761073887409,226.77,0.00017472,30]
[391998408,1761073887822,272.12,0.00018637,30]
[391998409,1761073888225,317.48,0.00019802,30]
[391998410,1761073889423,362.83,0.00020967,30]
[391998411,1761073889885,408.19,0.00022132,30]
[391998412,1761073890267,231.49,0.00023296,30]
[391998413,1761073903800,417.15472785,0.00024072,2]
[391998414,1761073935735,6453.42527215,0.00024072,2]
[391998415,1761073935757,4323.84408594,0.00024072,2]
[391998418,1761073956077,157.0,8.3e-07,2]
[391998419,1761073958206,150.0,0.00020036,2]
[391998420,1761073958639,150.0,0.00021858,2]
[391998421,1761073959106,197.99,0.00023679,2]
[391998422,1761073962388,150.0,0.00013322,30]
[391998423,1761073962791,150.0,0.00014533,30]
[391998424,1761073963193,150.0,0.00015745,30]
[391998425,1761073963611,150.0,0.00016956,30]
[391998426,1761073964041,150.0,0.00018167,30]
[391998427,1761073964502,169.71,0.00019378,30]
[391998428,1761073965398,197.99,0.00020589,30]
[391998429,1761073965838,226.28,0.000218,30]
[391998430,1761073980074,-417.15472785,0.00024,3]
[391998431,1761074034027,150.0,0.00020026,2]
[391998432,1761074034437,150.0,0.00021846,2]
[391998433,1761074034841,150.0,0.00023667,2]
[391998434,1761074038170,150.0,0.0001337,30]
[391998435,1761074038573,150.0,0.00014585,30]
[391998436,1761074039009,150.0,0.000158,30]
[391998437,1761074039993,150.0,0.00017016,30]
[391998438,1761074040443,150.0,0.00018231,30]
[391998439,1761074044841,5000.0,0.00024072,2]
[391998440,1761074053712,3800.01,0.00024072,2]
[391998441,1761074053734,1199.99,0.00024072,2]
[391998442,1761074068881,5000.0,0.00024072,2]
[391998443,1761074077276,3800.02,0.00024072,2]
[391998444,1761074077298,1199.98,0.00024072,2]
[391998445,1761074092494,5000.0,0.00024072,2]
[391998446,1761074100277,3800.03,0.00024072,2]
[391998447,1761074100301,1199.97,0.00024072,2]
[391998448,1761074107871,150.0,0.00020224,2]
[391998449,1761074108335,150.0,0.00022063,2]
[391998450,1761074108776,150.0,0.00023902,2]
[391998451,1761074112867,150.0,0.0001359,30]
[391998452,1761074116049,5000.0,0.00024072,2]
[391998453,1761074118477,150.0,0.00014825,30]
[391998454,1761074123824,3050.04,0.00024072,2]
[391998455,1761074123847,1949.96,0.00024072,2]
[391998456,1761074139008,5000.0,0.00024072,2]
[391998458,1761074146704,3050.05,0.00024072,2]
[391998459,1761074146727,1138.73540501,0.00024072,2]
[391998460,1761074162404,5000.0,0.00024072,2]
[391998461,1761074185930,150.0,0.00020195,2]
[391998462,1761074185957,3711.27459499,0.00024072,2]
[391998463,1761074185982,1288.72540501,0.00024072,2]
[391998464,1761074186396,150.0,0.00022031,2]
[391998465,1761074186788,150.0,0.00023866,2]
[391998466,1761074208249,5000.0,0.00024072,2]
[391998467,1761074231196,3411.28459499,0.00024072,2]
[391998468,1761074231219,1588.71540501,0.00024072,2]
[391998469,1761074253527,5000.0,0.00024072,2]
[391998470,1761074256720,150.0,0.00020037,2]
[391998471,1761074256916,150.0,0.00021858,2]
[391998472,1761074257392,150.0,0.0002368,2]
[391998473,1761074261213,2961.29459499,0.00024072,2]
[391998474,1761074261237,2038.70540501,0.00024072,2]
[391998475,1761074276363,5000.0,0.00024072,2]
[391998476,1761074298944,2961.30459499,0.00024072,2]
[391998477,1761074298969,2038.69540501,0.00024072,2]
[391998478,1761074321415,5000.0,0.00024072,2]
[391998479,1761074325546,150.0,0.00020041,2]
[391998480,1761074325978,150.0,0.00021863,2]
[391998481,1761074326374,150.0,0.00023684,2]
[391998482,1761074343833,2511.31459499,0.00024072,2]
[391998483,1761074343856,2488.68540501,0.00024072,2]
[391998484,1761074366175,5000.0,0.00024072,2]
[391998485,1761074388886,2511.32459499,0.00024072,2]
[391998486,1761074388910,2488.67540501,0.00024072,2]
[391998487,1761074391754,150.0,0.0002004,2]
[391998488,1761074392208,150.0,0.00021862,2]
[391998489,1761074392637,150.0,0.00023684,2]
[391998490,1761074394845,3724.04108194,0.00021818,2]
[391998491,1761074412847,3337.29351305,0.00024072,2]
[391998492,1761074412869,1662.70648695,0.00024072,2]
[391998493,1761074435685,5000.0,0.00024072,2]
[391998494,1761074458493,3337.30351305,0.00024072,2]
[391998495,1761074458516,1662.69648695,0.00024072,2]
[391998496,1761074460608,150.0,0.00019997,2]
[391998497,1761074461067,153.82,0.00021814,2]
[391998498,1761074461534,230.74,0.00023632,2]
[391998499,1761074464877,150.0,0.00013834,30]
[391998500,1761074465320,150.0,0.00015092,30]
[391998501,1761074465717,150.0,0.0001635,30]
[391998502,1761074466143,150.0,0.00017607,30]
[391998503,1761074466554,164.81,0.00018865,30]
[391998504,1761074466957,197.77,0.00020123,30]
[391998505,1761074467379,230.74,0.0002138,30]
[391998506,1761074467838,263.7,0.00022638,30]
[391998507,1761074468209,282.82,0.00023895,30]
[391998508,1761074481466,5000.0,0.00024072,2]
[391998509,1761074503820,1062.91351305,0.00024072,2]
[391998510,1761074503847,3937.08648695,0.00024072,2]
[391998511,1761074515671,206.9896312,0.00023705,2]
[391998512,1761074527154,5000.0,0.00024072,2]
[391998513,1761074535995,150.0,0.00019997,2]
[391998514,1761074536431,150.0,0.00021815,2]
[391998515,1761074536910,181.71,0.00023633,2]
[391998516,1761074540673,150.0,0.00013828,30]
[391998517,1761074541096,150.0,0.00015085,30]
[391998518,1761074541489,74.22388185,0.00016342,30]
[391998519,1761074541514,75.77611815,0.00016342,30]
[391998520,1761074541946,150.0,0.00017599,30]
[391998521,1761074542377,150.0,0.00018856,30]
[391998522,1761074542783,155.75,0.00020114,30]
[391998523,1761074543179,181.71,0.00021371,30]
[391998524,1761074543835,207.67,0.00022628,30]
[391998525,1761074549509,5000.0,0.00024072,2]
[391998530,1761074559767,500.0,0.00026,120]
[391998531,1761074560506,215.67,0.00026,120]
[391998533,1761074572788,4079.10388185,0.00024072,2]
[391998534,1761074572811,920.89611815,0.00024072,2]
[391998535,1761074595736,5000.0,0.00024072,2]
[391998536,1761074612012,150.0,0.00020083,2]
[391998537,1761074612437,150.0,0.00021909,2]
[391998538,1761074612886,150.0,0.00023734,2]
[391998539,1761074616369,150.0,0.000133,30]
[391998540,1761074616541,150.0,0.00014509,30]
[391998541,1761074616949,150.0,0.00015718,30]
[391998542,1761074617383,150.0,0.00016928,30]
[391998543,1761074617942,3029.11388185,0.00024072,2]
[391998544,1761074617966,1970.88611815,0.00024072,2]
[391998545,1761074640902,5000.0,0.00024072,2]
[391998546,1761074663852,3029.12388185,0.00024072,2]
[391998547,1761074663875,1970.87611815,0.00024072,2]
[391998548,1761074670175,196.0,0.00018,2]
[391998549,1761074670375,196.0,0.00018017,2]
[391998550,1761074670581,196.0,0.00018033,2]
[391998551,1761074670791,196.0,0.0001805,2]
[391998552,1761074670982,196.0,0.00018067,2]
[391998553,1761074671198,196.0,0.00018083,2]
[391998554,1761074671401,296.84651054,0.000181,2]
[391998555,1761074684759,150.0,0.00020111,2]
[391998556,1761074685167,154.63,0.00021939,2]
[391998557,1761074685577,231.94,0.00023767,2]
[391998558,1761074686575,5000.0,0.00024072,2]
[391998559,1761074689426,150.0,0.00013004,30]
[391998560,1761074689875,150.0,0.00014186,30]
[391998561,1761074690279,150.0,0.00015368,30]
[391998562,1761074690671,150.0,0.0001655,30]
[391998563,1761074691088,165.67,0.00017733,30]
[391998564,1761074691485,198.81,0.00018915,30]
[391998565,1761074691923,55.23737131,0.00020097,30]
[391998566,1761074691948,176.70262869,0.00020097,30]
[391998567,1761074692824,265.08,0.00021279,30]
[391998568,1761074693293,288.21,0.00022461,30]
[391998569,1761074702295,2767.40816881,0.00024072,2]
[391998570,1761074710083,5000.0,0.00024072,2]
[391998571,1761074718130,1502.6092025,0.00024072,2]
[391998572,1761074718155,1722.29922834,0.00024072,2]
[391998573,1761074733183,5000.0,0.00024072,2]
[391998574,1761074740871,3277.71077166,0.00024072,2]
[391998575,1761074740895,1722.28922834,0.00024072,2]
[391998576,1761074755276,5000.0,0.00024072,2]
[391998577,1761074760399,150.0,0.00020122,2]
[391998578,1761074760796,182.69,0.00021951,2]
[391998579,1761074761178,274.04,0.0002378,2]
[391998580,1761074762968,2670.99077166,0.00024072,2]
[391998581,1761074762991,853.54756217,0.00024072,2]
[391998582,1761074764808,150.0,0.00013115,30]
[391998583,1761074765209,150.0,0.00014307,30]
[391998584,1761074765610,150.0,0.00015499,30]
[391998585,1761074766090,156.59,0.00016691,30]
[391998586,1761074766426,195.74,0.00017884,30]
[391998587,1761074766866,234.89,0.00019076,30]
[391998588,1761074767270,274.04,0.00020268,30]
[391998589,1761074767679,313.18,0.0002146,30]
[391998590,1761074768099,352.33,0.00022653,30]
[391998591,1761074778050,5000.0,0.00024072,2]
[391998592,1761074791093,196.0,0.00018,2]
[391998593,1761074791288,196.0,0.00018006,2]
[391998594,1761074791488,196.0,0.00018011,2]
[391998595,1761074791681,196.0,0.00018017,2]
[391998596,1761074791889,196.0,0.00018022,2]
[391998597,1761074792095,196.0,0.00018028,2]
[391998598,1761074792301,196.0,0.00018033,2]
[391998599,1761074792509,196.0,0.00018039,2]
[391998600,1761074792712,196.0,0.00018044,2]
[391998601,1761074792928,196.0,0.0001805,2]
[391998602,1761074793309,196.0,0.00018056,2]
[391998603,1761074793510,13.69243783,0.00018061,2]
[391998604,1761074793536,182.30756217,0.00018061,2]
[391998605,1761074793702,196.0,0.00018067,2]
[391998606,1761074793899,196.0,0.00018072,2]
[391998607,1761074794096,196.0,0.00018078,2]
[391998608,1761074794302,196.0,0.00018083,2]
[391998609,1761074794518,196.0,0.00018089,2]
[391998610,1761074794722,196.0,0.00018094,2]
[391998611,1761074794928,208.59291763,0.000181,2]
[391998612,1761074800350,5000.0,0.00024072,2]
[391998613,1761074823831,3433.1095202,0.00024072,2]
[391998614,1761074823858,1566.8904798,0.00024072,2]
[391998615,1761074837454,359.83,0.00020973,2]
[391998616,1761074838161,719.67,0.0002288,2]
[391998617,1761074841855,154.21,0.00013012,30]
[391998618,1761074842266,308.43,0.00014195,30]
[391998619,1761074842659,462.64,0.00015378,30]
[391998620,1761074843059,616.86,0.00016561,30]
[391998621,1761074843472,771.07,0.00017744,30]
[391998622,1761074843905,925.29,0.00018927,30]
[391998623,1761074844305,1079.5,0.0002011,30]
[391998624,1761074844728,1233.72,0.00021293,30]
[391998625,1761074845130,1387.93,0.00022476,30]
[391998626,1761074846997,-382.99743191,0.00023658,30]
[391998627,1761074852222,-156.50052338,0.00023658,30]
[391998628,1761074853738,-1002.65204471,0.00023658,30]
[391998629,1761074853769,-2994.70591058,0.00023913,2]
[391998630,1761074853975,-2005.29408942,0.00023913,2]
[391998631,1761074856623,-1200.0,0.00023989,2]
[391998632,1761074864283,-5853.84424836,0.0002399,2]
[391998633,1761074865641,-10000.01,0.0002399,2]
[391998634,1761074865764,-10000.01,0.0002399,2]
[391998635,1761074865886,-10000.01,0.0002399,2]
[391998636,1761074866017,-10000.01,0.0002399,2]
[391998637,1761074866164,-10000.01,0.0002399,2]
[391998638,1761074866281,-10000.01,0.0002399,2]